bitfinex/quotes_BTCUSD_20241222
["timestamp","ask_amount","ask_price","bid_price","bid_amount"]
[1734887175897,0.001,95755.0,95746.0,0.208885]
[1734887176095,0.0103709,95753.0,95746.0,0.208885]
[1734887176534,0.0103709,95752.0,95746.0,0.208885]
[1734887176734,0.0103709,95752.0,95750.0,0.208876]
[1734887177162,0.0103709,95751.0,95750.0,0.208876]
[1734887177605,0.0103709,95751.0,95747.0,0.208883]
[1734887178166,0.0103709,95751.0,95745.0,0.208888]
[1734887178345,0.0103709,95751.0,95746.0,0.002]
[1734887178538,0.0103709,95751.0,95748.0,0.208881]
[1734887178839,0.0103709,95750.0,95748.0,0.208881]
[1734887179266,0.01059928,95767.0,95748.0,0.208881]
[1734887179267,0.0103709,95749.0,95748.0,0.208881]
[1734887180972,0.0103709,95765.0,95745.0,0.01030969]
[1734887181194,0.0103709,95765.0,95758.0,0.208858]
[1734887181634,0.0103709,95764.0,95758.0,0.208858]
[1734887182117,0.0103709,95763.0,95753.0,0.208869]
[1734887182494,0.0103709,95763.0,95753.0,0.411739]
[1734887182697,0.0103709,95762.0,95753.0,0.411739]
[1734887183224,0.0103709,95761.0,95758.0,0.001]
[1734887183954,0.0103709,95760.0,95758.0,0.001]
[1734887184425,0.0103709,95759.0,95757.0,0.20886]
[1734887185255,0.0103709,95758.0,95757.0,0.20886]
[1734887185980,0.0103709,95758.0,95757.0,0.21186]
[1734887186325,0.0103709,95758.0,95757.0,0.20886]
[1734887187500,0.0103709,95758.0,95757.0,0.20286]
[1734887187892,0.0103709,95758.0,95757.0,0.20586]
[1734887188205,0.0103709,95758.0,95757.0,0.20286]
[1734887188434,0.0103709,95758.0,95757.0,0.20686]
[1734887192406,0.0103709,95758.0,95757.0,0.20086]
[1734887194165,0.0103709,95758.0,95757.0,0.32756]
[1734887195194,0.0103709,95758.0,95757.0,0.33778485]
[1734887195336,0.01042038,95758.0,95757.0,0.33778485]
[1734887197484,0.01042038,95758.0,95757.0,0.43909325]
[1734887197720,0.0001712,95758.0,95757.0,0.43309325]
[1734887198331,0.0001712,95758.0,95757.0,0.42909325]
[1734887198546,4.5e-07,95766.0,95765.0,0.208844]
[1734887198753,4e-07,95770.0,95765.0,0.208844]
[1734887198754,8.56e-05,95781.0,95766.0,0.1267]
[1734887198950,8.56e-05,95781.0,95780.0,0.335511]
[1734887199213,8.56e-05,95781.0,95780.0,0.4368194]
[1734887201658,8.56e-05,95781.0,95780.0,0.4458194]
[1734887201879,8.56e-05,95781.0,95780.0,0.4368194]
[1734887202083,8.56e-05,95781.0,95780.0,0.35602854]
[1734887202263,8.56e-05,95781.0,95780.0,0.35702854]
[1734887202466,8.56e-05,95781.0,95780.0,0.35002854]
[1734887202872,8.56e-05,95781.0,95780.0,0.35102854]
[1734887203985,8.56e-05,95781.0,95780.0,0.36145238]
[1734887204431,8.56e-05,95781.0,95780.0,0.36045238]
[1734887204625,8.56e-05,95781.0,95780.0,0.36845238]
[1734887205406,8.56e-05,95781.0,95780.0,0.36045238]
[1734887205959,0.0030856,95781.0,95780.0,0.36045238]
[1734887206185,8.56e-05,95781.0,95780.0,0.36045238]
[1734887206501,8.56e-05,95781.0,95780.0,0.36845238]
[1734887207365,8.56e-05,95781.0,95780.0,0.210811]
[1734887207601,8.56e-05,95781.0,95780.0,0.204811]
[1734887208020,8.56e-05,95781.0,95780.0,0.4375194]
[1734887208153,8.56e-05,95781.0,95780.0,0.4295194]
[1734887208581,8.56e-05,95781.0,95780.0,0.4385194]
[1734887208872,8.56e-05,95781.0,95780.0,0.4295194]
[1734887209076,8.56e-05,95781.0,95780.0,0.4385194]
[1734887209479,8.56e-05,95781.0,95780.0,0.4295194]
[1734887211177,8.56e-05,95781.0,95780.0,0.2417084]
[1734887211360,8.56e-05,95781.0,95780.0,0.2327084]
[1734887211790,8.56e-05,95781.0,95780.0,0.4445194]
[1734887214961,8.56e-05,95781.0,95780.0,0.4415194]
[1734887215276,8.56e-05,95781.0,95780.0,0.4505194]
[1734887217459,8.56e-05,95781.0,95780.0,0.9665494]
[1734887219081,8.56e-05,95781.0,95780.0,1.42466261]
[1734887220389,8.56e-05,95781.0,95780.0,1.42474821]
[1734887223097,8.56e-05,95781.0,95780.0,1.41874821]
[1734887227466,8.56e-05,95781.0,95780.0,1.41274821]
[1734887229448,0.01051085,95781.0,95780.0,1.41274821]
[1734887232478,0.01051085,95781.0,95780.0,1.40674821]
[1734887237016,8.56e-05,95781.0,95780.0,1.40674821]
[1734887237507,8.56e-05,95781.0,95780.0,1.73358418]
[1734887238339,0.01051583,95781.0,95780.0,1.73358418]
[1734887239344,0.01051583,95781.0,95780.0,1.96691601]
[1734887241002,0.0001714,95795.0,95790.0,0.2308]
[1734887241226,0.0001712,95825.0,95824.0,0.208715]
[1734887241692,0.00071322,95825.0,95824.0,0.208715]
[1734887242257,0.00071322,95825.0,95824.0,0.730505]
[1734887242510,0.00071322,95825.0,95824.0,0.731505]
[1734887242750,0.00071322,95825.0,95824.0,0.725505]
[1734887244136,0.00071322,95825.0,95824.0,0.8258134]
[1734887244372,0.00071322,95825.0,95824.0,0.8268134]
[1734887245284,0.00071322,95825.0,95824.0,0.8258134]
[1734887245448,0.00071322,95825.0,95824.0,0.8348134]
[1734887245657,0.00071322,95825.0,95824.0,1.38824712]
[1734887246078,0.00071322,95825.0,95824.0,1.84636033]
[1734887246325,0.0144064,95836.0,95831.0,0.2087]
[1734887246545,0.0002325,95832.0,95831.0,0.3589084]
[1734887247744,0.0002325,95832.0,95831.0,0.81902161]
[1734887247981,0.0002325,95832.0,95831.0,0.90072161]
[1734887248229,0.0002325,95832.0,95831.0,1.42247161]
[1734887248434,0.0002325,95832.0,95831.0,2.0017134]
[1734887248845,0.0002325,95832.0,95831.0,1.9937134]
[1734887249272,0.0002325,95832.0,95831.0,2.1447134]
[1734887249422,0.0002325,95832.0,95831.0,2.2447134]
[1734887249639,0.0002325,95832.0,95831.0,2.2677134]
[1734887249841,0.0002325,95832.0,95831.0,2.12019396]
[1734887250340,0.0002325,95832.0,95831.0,2.22019396]
[1734887250556,0.0002325,95832.0,95831.0,2.21919396]
[1734887250924,0.0002325,95832.0,95831.0,2.31919396]
[1734887251343,0.0002325,95832.0,95831.0,2.13266303]
[1734887251761,0.015,95865.0,95845.0,0.20867]
[1734887251964,0.015,95865.0,95845.0,0.9133584]
[1734887253057,0.015,95865.0,95845.0,0.9629584]
[1734887254452,0.015,95865.0,95845.0,0.9669584]
[1734887254814,0.208608,95874.0,95845.0,0.97351997]
[1734887255013,0.01009664,95875.0,95845.0,0.98251997]
[1734887255530,0.0777,95876.0,95845.0,1.44063318]
[1734887255741,0.01026784,95877.0,95845.0,1.15384326]
[1734887255993,0.01026784,95877.0,95845.0,1.17684326]
[1734887256187,0.0001712,95877.0,95845.0,1.27684326]
[1734887256995,0.0001712,95877.0,95845.0,1.26784326]
[1734887257764,0.0001712,95877.0,95853.0,0.208652]
[1734887257968,0.0001712,95877.0,95865.0,0.208626]
[1734887258167,0.00033361,95877.0,95876.0,0.337402]
[1734887258520,0.00033361,95877.0,95876.0,0.4617104]
[1734887258659,0.00033361,95877.0,95876.0,0.4387104]
[1734887259701,0.00033361,95877.0,95876.0,0.45916552]
[1734887260139,0.00033361,95877.0,95876.0,0.98067552]
[1734887260384,0.00033361,95877.0,95876.0,0.99091515]
[1734887260597,0.00033361,95877.0,95876.0,0.88960675]
[1734887260803,0.00033361,95877.0,95876.0,0.81550675]
[1734887261727,0.00033361,95877.0,95876.0,0.90781515]
[1734887261938,0.00033361,95877.0,95876.0,0.91681515]
[1734887262503,0.00033361,95877.0,95876.0,0.91081515]
[1734887263782,0.00033361,95877.0,95876.0,0.90181515]
[1734887263994,0.00033361,95877.0,95876.0,0.90281515]
[1734887264197,0.00033361,95877.0,95876.0,1.36092836]
[1734887264401,0.00033361,95877.0,95876.0,1.35992836]
[1734887264842,0.00033361,95877.0,95876.0,1.36092836]
[1734887265046,0.00033361,95877.0,95876.0,1.35992836]
[1734887265540,0.00033361,95877.0,95876.0,1.36892836]
[1734887266832,0.00033361,95877.0,95876.0,1.35992836]
[1734887267054,0.00033361,95877.0,95876.0,1.31422836]
[1734887267255,0.00033361,95877.0,95876.0,0.732112]
[1734887267471,0.00033361,95877.0,95876.0,0.726112]
[1734887270500,0.00033361,95877.0,95876.0,0.52951]
[1734887270709,0.01040574,95877.0,95876.0,0.52951]
[1734887273221,0.01040574,95877.0,95876.0,0.52151]
[1734887273421,0.01040574,95877.0,95876.0,0.52451]
[1734887273786,0.01040574,95877.0,95876.0,0.52151]
[1734887274903,0.01040574,95877.0,95876.0,0.52251]
[1734887276432,0.01040574,95877.0,95876.0,0.52151]
[1734887276830,0.01040574,95877.0,95876.0,0.52551]
[1734887277232,0.01040574,95877.0,95876.0,0.52151]
[1734887277441,0.01040574,95877.0,95876.0,0.52451]
[1734887279226,0.01040574,95877.0,95876.0,0.524681]
[1734887280370,0.29560574,95877.0,95876.0,0.524681]
[1734887281431,0.29560574,95877.0,95876.0,0.521681]
[1734887282091,0.21900574,95877.0,95876.0,0.521681]
[1734887282310,0.01040574,95877.0,95876.0,0.521681]
[1734887291742,0.11171414,95877.0,95876.0,0.521681]
[1734887298074,0.55622201,95877.0,95876.0,0.521681]
[1734887298257,0.57922201,95877.0,95876.0,0.521681]
[1734887298858,0.57922201,95877.0,95876.0,0.45638964]
[1734887300387,0.56981414,95877.0,95876.0,0.45638964]
[1734887300835,0.56781414,95877.0,95876.0,0.45638964]
[1734887301032,0.56981414,95877.0,95876.0,0.45738964]
[1734887301580,0.44681414,95877.0,95876.0,0.45738964]
[1734887301911,0.53034201,95877.0,95876.0,0.45738964]
[1734887302295,0.43034201,95877.0,95876.0,0.45738964]
[1734887302500,0.25364201,95877.0,95876.0,0.45738964]
[1734887302851,0.26285249,95877.0,95876.0,0.45738964]
[1734887303233,0.26085249,95877.0,95876.0,0.45638964]
[1734887303631,0.26285249,95877.0,95876.0,0.45738964]
[1734887303829,0.26085249,95877.0,95876.0,0.45638964]
[1734887304238,0.26285249,95877.0,95876.0,0.45738964]
[1734887305001,0.26085249,95877.0,95876.0,0.45638964]
[1734887305205,0.11085249,95877.0,95876.0,0.45638964]
[1734887305400,0.11285249,95877.0,95876.0,0.45638964]
[1734887305610,0.01154409,95877.0,95876.0,0.50618964]
[1734887306882,0.00954409,95877.0,95876.0,0.50618964]
[1734887307088,0.01154409,95877.0,95876.0,0.50618964]
[1734887307289,0.00233361,95877.0,95876.0,0.50618964]
[1734887307462,0.00033361,95877.0,95876.0,0.50618964]
[1734887307674,0.00233361,95877.0,95876.0,0.50618964]
[1734887308079,0.00033361,95877.0,95876.0,0.50618964]
[1734887309704,0.00033361,95877.0,95876.0,0.58638964]
[1734887310040,0.00033361,95877.0,95876.0,0.59138964]
[1734887310471,0.00033361,95877.0,95876.0,0.58638964]
[1734887310672,0.00033361,95877.0,95876.0,0.59138964]
[1734887311352,0.00033361,95877.0,95876.0,0.58638964]
[1734887311552,0.00033361,95877.0,95876.0,0.59438964]
[1734887314011,0.00954409,95877.0,95876.0,0.59438964]
[1734887314500,0.00954409,95877.0,95876.0,0.58638964]
[1734887314712,0.00954409,95877.0,95876.0,0.58938964]
[1734887315397,0.00033361,95877.0,95876.0,0.58938964]
[1734887316147,0.00033361,95877.0,95876.0,0.69791151]
[1734887316554,0.00033361,95877.0,95876.0,0.70391151]
[1734887316755,0.00033361,95877.0,95876.0,0.69791151]
[1734887317215,0.00033361,95877.0,95876.0,0.70491151]
[1734887317899,0.00033361,95877.0,95876.0,0.69791151]
[1734887318307,0.00033361,95877.0,95876.0,0.70691151]
[1734887323876,0.00033361,95877.0,95876.0,1.16502472]
[1734887324287,6.1e-07,95877.0,95876.0,1.16502472]
[1734887326211,8.621e-05,95877.0,95876.0,1.16502472]
[1734887326629,8.621e-05,95877.0,95876.0,1.50919305]
[1734887329377,8.621e-05,95877.0,95876.0,1.30479678]
[1734887331647,8.621e-05,95877.0,95876.0,1.16502472]
[1734887332915,8.621e-05,95877.0,95876.0,1.30479678]
[1734887334123,8.621e-05,95877.0,95876.0,1.20348838]
[1734887334692,8.621e-05,95877.0,95876.0,1.06371632]
[1734887335845,0.00929669,95877.0,95876.0,1.06371632]
[1734887336230,0.00929669,95877.0,95876.0,0.60560311]
[1734887336435,0.00929669,95877.0,95876.0,0.59538964]
[1734887336629,0.00929669,95877.0,95876.0,0.51518964]
[1734887337036,0.00929669,95877.0,95876.0,0.46538964]
[1734887337637,0.00929669,95877.0,95876.0,0.45638964]
[1734887338473,0.19050509,95877.0,95876.0,0.45638964]
[1734887339027,0.00929669,95877.0,95876.0,0.45638964]
[1734887339811,0.00929669,95877.0,95876.0,0.46038964]
[1734887340013,0.00929669,95877.0,95876.0,0.45638964]
[1734887340417,0.00929669,95877.0,95876.0,0.45738964]
[1734887341053,8.621e-05,95877.0,95876.0,0.45738964]
[1734887341285,0.00930189,95877.0,95876.0,0.45738964]
[1734887341665,0.00930189,95877.0,95876.0,0.45638964]
[1734887342224,0.00930189,95877.0,95876.0,0.53268964]
[1734887343136,0.00108621,95877.0,95876.0,0.53268964]
[1734887343336,8.621e-05,95877.0,95876.0,0.53268964]
[1734887343746,8.621e-05,95877.0,95876.0,0.53368964]
[1734887343979,8.621e-05,95877.0,95876.0,0.53268964]
[1734887344197,8.621e-05,95877.0,95876.0,0.53368964]
[1734887345315,0.00930189,95877.0,95876.0,0.53368964]
[1734887345734,0.00930189,95877.0,95876.0,0.45638964]
[1734887347757,0.00930189,95877.0,95876.0,0.45738964]
[1734887348160,0.00930189,95877.0,95876.0,0.45638964]
[1734887348342,0.00930189,95877.0,95876.0,0.45738964]
[1734887348753,0.00930189,95877.0,95876.0,0.45638964]
[1734887349667,0.21790189,95877.0,95876.0,0.45638964]
[1734887350092,0.31921029,95877.0,95876.0,0.45738964]
[1734887350551,0.31921029,95877.0,95876.0,0.45638964]
[1734887350893,0.64681029,95877.0,95876.0,0.45738964]
[1734887351053,0.76981029,95877.0,95876.0,0.45638964]
[1734887351267,0.77104088,95877.0,95876.0,0.45638964]
[1734887351589,0.78238308,95877.0,95876.0,0.45638964]
[1734887353834,0.78038308,95877.0,95876.0,0.45638964]
[1734887354036,0.78438308,95877.0,95876.0,0.45738964]
[1734887354441,0.78038308,95877.0,95876.0,0.45638964]
[1734887354650,0.78438308,95877.0,95876.0,0.45738964]
[1734887356660,0.78438308,95877.0,95876.0,0.001171]
[1734887356804,0.75081029,95877.0,95876.0,0.001171]
[1734887357879,0.77381029,95877.0,95876.0,0.001171]
[1734887358765,0.76459461,95877.0,95876.0,0.001171]
[1734887359230,0.7737821,95877.0,95876.0,0.001171]
[1734887359557,0.78520406,95877.0,95876.0,0.001171]
[1734887360325,0.77601657,95877.0,95876.0,0.001171]
[1734887360650,0.78578937,95877.0,95876.0,0.001171]
[1734887364040,0.57318455,95877.0,95876.0,0.001171]
[1734887364264,0.67318455,95877.0,95876.0,0.001171]
[1734887369452,0.57318455,95877.0,95876.0,0.001171]
[1734887369756,0.67318455,95877.0,95876.0,0.001171]
[1734887370168,0.57318455,95877.0,95876.0,0.001171]
[1734887370670,0.67318455,95877.0,95876.0,0.001171]
[1734887370874,0.57318455,95877.0,95876.0,0.001171]
[1734887371346,0.67318455,95877.0,95876.0,0.001171]
[1734887371556,0.66918455,95877.0,95876.0,0.000171]
[1734887371881,0.67318455,95877.0,95876.0,0.001171]
[1734887372639,0.69618455,95877.0,95876.0,0.001171]
[1734887373441,0.77458455,95877.0,95876.0,0.001171]
[1734887376808,0.69618455,95877.0,95876.0,0.001171]
[1734887377008,0.59618455,95877.0,95876.0,0.001171]
[1734887377520,0.69618455,95877.0,95876.0,0.001171]
[1734887384641,0.47318455,95877.0,95876.0,0.001171]
[1734887384844,0.57318455,95877.0,95876.0,0.001171]
[1734887385016,0.67318455,95877.0,95876.0,0.001171]
[1734887385428,0.57318455,95877.0,95876.0,0.001171]
[1734887388627,0.67318455,95877.0,95876.0,0.001171]
[1734887389812,0.47318455,95877.0,95876.0,0.001171]
[1734887390025,0.46918455,95877.0,95876.0,0.047471]
[1734887390240,0.26058455,95877.0,95876.0,0.047471]
[1734887390452,0.01327615,95877.0,95876.0,0.123371]
[1734887390895,0.00408621,95877.0,95876.0,0.123371]
[1734887391803,8.621e-05,95877.0,95876.0,0.123371]
[1734887392026,0.01331599,95877.0,95876.0,0.123371]
[1734887393315,0.00931599,95877.0,95876.0,0.123371]
[1734887393768,0.01031599,95877.0,95876.0,0.123371]
[1734887394008,0.00931599,95877.0,95876.0,0.123371]
[1734887394518,0.00931599,95877.0,95876.0,0.128371]
[1734887395407,0.00931599,95877.0,95876.0,0.123371]
[1734887396839,0.11362439,95877.0,95876.0,0.000171]
[1734887397167,0.11062439,95877.0,95876.0,0.000171]
[1734887397586,0.11462439,95877.0,95876.0,0.000171]
[1734887397793,0.11062439,95877.0,95876.0,0.000171]
[1734887397996,0.11062439,95877.0,95876.0,0.001171]
[1734887398194,0.11462439,95877.0,95876.0,0.001171]
[1734887398411,0.11062439,95877.0,95876.0,0.000171]
[1734887398628,0.11062439,95877.0,95876.0,0.001171]
[1734887398837,0.25,95853.0,95852.0,0.09337427]
[1734887399057,0.4513084,95853.0,95852.0,0.09337427]
[1734887399249,0.48353818,95853.0,95852.0,0.09337427]
[1734887399456,0.49923944,95853.0,95852.0,0.09337427]
[1734887399664,0.2,95850.0,95849.0,0.09337427]
[1734887399869,0.4743084,95850.0,95849.0,0.09337427]
[1734887400703,0.4743989,95850.0,95849.0,0.09337427]
[1734887400929,0.51983915,95850.0,95849.0,0.09337427]
[1734887401126,0.458676,95842.0,95803.0,0.20876]
[1734887401324,0.5829844,95842.0,95803.0,0.20876]
[1734887401535,0.69221418,95842.0,95812.0,0.0759]
[1734887401687,0.70813523,95842.0,95812.0,0.0759]
[1734887402517,0.70813523,95842.0,95841.0,0.000333]
[1734887403715,0.72881336,95842.0,95841.0,0.000333]
[1734887403879,0.73781336,95842.0,95841.0,0.001333]
[1734887404289,0.72881336,95842.0,95841.0,0.000333]
[1734887404496,0.73781336,95842.0,95841.0,0.001333]
[1734887404873,0.72881336,95842.0,95841.0,0.000333]
[1734887405558,0.60813523,95842.0,95841.0,0.000333]
[1734887405767,0.59221418,95842.0,95841.0,0.000333]
[1734887405973,0.69221418,95842.0,95841.0,0.000333]
[1734887406354,0.47821418,95842.0,95841.0,0.001333]
[1734887406561,0.47821418,95842.0,95841.0,0.000333]
[1734887406562,0.56921418,95842.0,95841.0,0.000333]
[1734887406716,0.31921418,95842.0,95841.0,0.000333]
[1734887406923,0.32821418,95842.0,95841.0,0.001333]
[1734887407319,0.31921418,95842.0,95841.0,0.000333]
[1734887407534,0.32821418,95842.0,95841.0,0.001333]
[1734887408239,0.31921418,95842.0,95841.0,0.000333]
[1734887408489,0.46921418,95842.0,95841.0,0.000333]
[1734887410401,0.47621418,95842.0,95841.0,0.001333]
[1734887410592,0.46921418,95842.0,95841.0,0.000333]
[1734887411068,0.47621418,95842.0,95841.0,0.001333]
[1734887411395,0.46921418,95842.0,95841.0,0.000333]
[1734887411657,0.47521418,95842.0,95841.0,0.001333]
[1734887413514,0.46921418,95842.0,95841.0,0.000333]
[1734887413714,0.47421418,95842.0,95841.0,0.000333]
[1734887414556,0.46921418,95842.0,95841.0,0.000333]
[1734887415037,0.47421418,95842.0,95841.0,0.000333]
[1734887415492,0.46921418,95842.0,95841.0,0.000333]
[1734887416725,0.47421418,95842.0,95841.0,0.000333]
[1734887417729,0.4649844,95842.0,95841.0,0.000333]
[1734887418168,0.47415403,95842.0,95841.0,0.000333]
[1734887418601,0.56915403,95842.0,95841.0,0.000333]
[1734887419943,0.57415403,95842.0,95841.0,0.000333]
[1734887421372,0.69715403,95842.0,95841.0,0.000333]
[1734887423543,0.47415403,95842.0,95841.0,0.000333]
[1734887425104,0.46915403,95842.0,95841.0,0.000333]
[1734887425805,0.11047803,95842.0,95841.0,0.000333]
[1734887426094,0.00916963,95842.0,95841.0,0.049133]
[1734887426315,0.01216963,95842.0,95841.0,0.049133]
[1734887426521,0.01216963,95842.0,95841.0,0.257811]
[1734887426719,0.00916963,95842.0,95841.0,0.257811]
[1734887427433,0.01016963,95842.0,95841.0,0.257811]
[1734887427679,0.00916963,95842.0,95841.0,0.049133]
[1734887427909,0.00916963,95842.0,95841.0,0.053133]
[1734887428131,0.00916963,95842.0,95841.0,0.049133]
[1734887428340,0.208652,95853.0,95842.0,0.208676]
[1734887428483,0.1013084,95852.0,95842.0,0.208676]
[1734887430355,0.1033084,95852.0,95842.0,0.208676]
[1734887430788,0.16048916,95855.0,95841.0,0.049133]
[1734887430789,0.15,95857.0,95841.0,0.049133]
[1734887431118,0.002,95852.0,95843.0,0.208673]
[1734887432639,0.3099554,95856.0,95843.0,0.208673]
[1734887432838,0.208657,95851.0,95841.0,0.049133]
[1734887433042,0.1013084,95850.0,95841.0,0.049133]
[1734887434043,0.208661,95849.0,95841.0,0.049133]
[1734887434243,0.208665,95847.0,95841.0,0.049133]
[1734887435867,0.208668,95846.0,95841.0,0.049133]
[1734887437618,0.210668,95846.0,95841.0,0.049133]
[1734887438200,0.20867,95845.0,95841.0,0.049133]
[1734887439340,0.1013084,95847.0,95841.0,0.049133]
[1734887439532,0.001,95845.0,95841.0,0.049133]
[1734887440436,0.15,95859.0,95842.0,0.0766]
[1734887440645,0.15,95857.0,95843.0,0.208674]
[1734887440845,0.15,95855.0,95844.0,0.208672]
[1734887441024,0.15,95853.0,95844.0,0.208672]
[1734887441262,0.15,95852.0,95844.0,0.208672]
[1734887441481,0.1013084,95853.0,95844.0,0.208672]
[1734887441885,0.1013084,95853.0,95845.0,0.20867]
[1734887442507,0.1013084,95853.0,95849.0,0.20866]
[1734887443949,0.1013084,95853.0,95845.0,0.20867]
[1734887443950,0.01064553,95866.0,95854.0,0.208649]
[1734887444165,0.15,95864.0,95854.0,0.208649]
[1734887444365,0.1013084,95863.0,95854.0,0.208649]
[1734887444573,0.15,95862.0,95854.0,0.208649]
[1734887444785,0.2513084,95862.0,95854.0,0.208649]
[1734887446253,0.2553084,95862.0,95854.0,0.208649]
[1734887447621,0.00921111,95861.0,95854.0,0.208649]
[1734887448022,0.00921111,95860.0,95854.0,0.208649]
[1734887448500,0.00921111,95860.0,95852.0,0.208655]
[1734887448732,0.00921111,95859.0,95852.0,0.208655]
[1734887449383,0.208641,95858.0,95851.0,0.0498]
[1734887449603,0.3099494,95858.0,95851.0,0.0498]
[1734887449810,0.208644,95857.0,95851.0,0.0498]
[1734887450767,0.00921331,95856.0,95851.0,0.0498]
[1734887451388,0.3099504,95858.0,95851.0,0.0498]
[1734887452402,0.20865,95855.0,95851.0,0.0508]
[1734887452611,0.20865,95855.0,95851.0,0.0498]
[1734887453118,0.3099504,95858.0,95851.0,0.0498]
[1734887453318,0.00921984,95854.0,95851.0,0.0498]
[1734887454121,0.00921984,95853.0,95851.0,0.0508]
[1734887454341,0.00921984,95852.0,95851.0,0.0508]
[1734887455398,0.208674,95843.0,95842.0,0.0001712]
[1734887455520,0.4599824,95843.0,95842.0,0.0001712]
[1734887456131,0.46920224,95843.0,95842.0,0.0001712]
[1734887456349,0.56920224,95843.0,95842.0,0.0001712]
[1734887457127,0.56920224,95843.0,95842.0,0.0011712]
[1734887457930,0.66920224,95843.0,95842.0,0.0011712]
[1734887458213,0.69220224,95843.0,95842.0,0.0011712]
[1734887458634,0.69220224,95843.0,95842.0,0.0001712]
[1734887459060,0.69920224,95843.0,95842.0,0.0011712]
[1734887459268,0.69220224,95843.0,95842.0,0.0001712]
[1734887459692,0.208766,95801.0,95798.0,0.0817]
[1734887460111,0.417532,95801.0,95798.0,0.0817]
[1734887460750,0.20497,95799.0,95798.0,0.0817]
[1734887461570,0.21418984,95799.0,95797.0,0.04904202]
[1734887462382,0.00921984,95799.0,95797.0,0.04904202]
[1734887462592,0.00921984,95798.0,95797.0,0.04904202]
[1734887463203,0.00921984,95798.0,95797.0,0.12594202]
[1734887463410,0.002,95799.0,95798.0,0.208772]
[1734887463624,0.00921984,95811.0,95798.0,0.208772]
[1734887463843,0.1013084,95811.0,95798.0,0.208772]
[1734887464025,0.208746,95810.0,95797.0,0.12594202]
[1734887464711,0.208769,95800.0,95797.0,0.12594202]
[1734887464930,0.1013084,95799.0,95797.0,0.04904202]
[1734887465140,0.208772,95798.0,95797.0,0.04904202]
[1734887465324,0.3100804,95798.0,95797.0,0.04904202]
[1734887465534,0.3100804,95798.0,95797.0,0.05004202]
[1734887465951,0.3100804,95798.0,95797.0,0.04904202]
[1734887465952,0.31930024,95798.0,95797.0,0.04904202]
[1734887466911,0.32130024,95798.0,95797.0,0.04904202]
[1734887467983,0.32130024,95798.0,95797.0,0.00054202]
[1734887468639,0.47130024,95798.0,95797.0,0.00054202]
[1734887469072,0.64820024,95798.0,95797.0,0.00071322]
[1734887469288,0.77120024,95798.0,95797.0,0.00071322]
[1734887470159,0.76920024,95798.0,95797.0,0.00071322]
[1734887470550,0.77820024,95798.0,95797.0,0.00171322]
[1734887471183,0.70130024,95798.0,95797.0,0.00171322]
[1734887471840,0.69230024,95798.0,95797.0,0.00071322]
[1734887472053,0.70130024,95798.0,95797.0,0.00171322]
[1734887472259,0.47830024,95798.0,95797.0,0.00171322]
[1734887472477,0.46930024,95798.0,95797.0,0.00071322]
[1734887472694,0.47830024,95798.0,95797.0,0.00171322]
[1734887473118,0.46930024,95798.0,95797.0,0.00071322]
[1734887473328,0.47830024,95798.0,95797.0,0.00171322]
[1734887473745,0.46930024,95798.0,95797.0,0.00071322]
[1734887474809,0.26052824,95798.0,95797.0,0.00071322]
[1734887475246,0.26652824,95798.0,95797.0,0.00171322]
[1734887475652,0.26052824,95798.0,95797.0,0.00071322]
[1734887476061,0.26352824,95798.0,95797.0,0.00071322]
[1734887476195,0.26052824,95798.0,95797.0,0.00071322]
[1734887477660,0.26252824,95798.0,95797.0,0.00071322]
[1734887478852,0.26052824,95798.0,95797.0,0.00071322]
[1734887479283,0.26252824,95798.0,95797.0,0.00071322]
[1734887479674,0.26052824,95798.0,95797.0,0.00071322]
[1734887479824,0.26252824,95798.0,95797.0,0.00071322]
[1734887480830,0.26052824,95798.0,95797.0,0.00071322]
[1734887482570,0.26252824,95798.0,95797.0,0.00071322]
[1734887482769,0.26052824,95798.0,95797.0,0.00071322]
[1734887483053,0.26252824,95798.0,95797.0,0.00071322]
[1734887483291,0.26052824,95798.0,95797.0,0.00071322]
[1734887483740,0.2563084,95798.0,95797.0,0.00071322]
[1734887483920,0.26048996,95798.0,95797.0,0.00071322]
[1734887484372,0.2563084,95798.0,95797.0,0.00071322]
[1734887485541,0.26549794,95798.0,95797.0,0.00071322]
[1734887486615,0.26049794,95798.0,95797.0,0.00071322]
[1734887486818,0.26449794,95798.0,95797.0,0.00071322]
[1734887502115,0.38749794,95798.0,95797.0,0.00071322]
[1734887502524,0.56359794,95798.0,95797.0,2.2e-07]
[1734887502994,0.25,95794.0,95780.0,8.56e-05]
[1734887503201,0.15,95781.0,95780.0,8.56e-05]
[1734887503404,0.15,95781.0,95780.0,0.1275856]
[1734887503612,0.1013084,95793.0,95780.0,0.1275856]
[1734887503801,0.15918954,95792.0,95780.0,0.1275856]
[1734887504002,0.208798,95786.0,95780.0,0.1275856]
[1734887504200,0.1013084,95785.0,95780.0,0.1275856]
[1734887504843,0.21799254,95784.0,95780.0,0.1275856]
[1734887505053,0.1013084,95783.0,95780.0,0.1275856]
[1734887505260,0.11049794,95783.0,95780.0,0.1275856]
[1734887505618,0.11049794,95783.0,95780.0,0.1285856]
[1734887506033,0.00918954,95782.0,95780.0,0.1275856]
[1734887506209,0.11049794,95782.0,95780.0,0.1275856]
[1734887506570,0.00918954,95781.0,95780.0,0.1275856]
[1734887508967,0.01118954,95781.0,95780.0,0.1275856]
[1734887512918,0.00918954,95781.0,95780.0,0.1275856]
[1734887513776,0.01018954,95781.0,95780.0,0.1275856]
[1734887522122,0.00918954,95781.0,95780.0,0.1275856]
[1734887522458,0.01018954,95781.0,95780.0,0.1275856]
[1734887522692,0.00918954,95781.0,95780.0,0.22095987]
[1734887523105,0.00918954,95781.0,95780.0,0.22195987]
[1734887526995,0.00918954,95781.0,95780.0,0.1285856]
[1734887527419,0.11049794,95781.0,95780.0,0.0010856]
[1734887527622,0.26049794,95781.0,95780.0,0.0010856]
[1734887528440,0.26049794,95781.0,95780.0,8.56e-05]
[1734887528862,0.26149794,95781.0,95780.0,8.56e-05]
[1734887529073,0.11049794,95781.0,95780.0,0.0805856]
[1734887529283,0.00918954,95781.0,95780.0,0.1278856]
[1734887529496,0.01318954,95781.0,95780.0,0.1278856]
[1734887529907,0.00918954,95781.0,95780.0,0.1278856]
[1734887530117,0.01118954,95781.0,95780.0,0.1278856]
[1734887530737,0.00918954,95781.0,95780.0,0.1278856]
[1734887531329,8.57e-05,95797.0,95796.0,0.256076]
[1734887531541,8.57e-05,95797.0,95796.0,0.336576]
[1734887533205,8.57e-05,95797.0,95796.0,0.1278]
[1734887533377,8.57e-05,95797.0,95794.0,0.09366977]
[1734887533600,0.3100844,95796.0,95794.0,0.09366977]
[1734887534288,0.1013084,95796.0,95794.0,0.09366977]
[1734887534491,0.208779,95795.0,95794.0,0.09366977]
[1734887534696,0.3100874,95795.0,95794.0,0.09366977]